bitfinex/quotes_SOLUSD_20240614
["timestamp","ask_amount","ask_price","bid_price","bid_amount"]
[1718386510285,0.8514778,142.27,142.26,2.6008]
[1718386510508,0.8514778,142.27,142.25,2.601]
[1718386510671,0.8514778,142.27,142.21,15.8649]
[1718386510879,0.8514778,142.27,142.2,10.4078]
[1718386511190,23.4114,142.24,142.2,23.4167]
[1718386511365,15.6076,142.24,142.21,2.6017]
[1718386511565,15.6076,142.24,142.17,22.1036]
[1718386511566,2.6011,142.25,142.22,2.6015]
[1718386511790,7.8035,142.25,142.21,5.2035]
[1718386511992,15.6075,142.24,142.21,2.6017]
[1718386512291,2.6016,142.22,142.17,22.1036]
[1718386512602,0.8514778,142.27,142.22,2.6015]
[1718386512770,23.4101,142.25,142.22,2.6015]
[1718386513091,2.6012,142.24,142.22,2.6015]
[1718386513280,2.6012,142.24,142.22,2.6016]
[1718386513486,18.2102,142.23,142.2,2.6018]
[1718386513704,23.4119,142.24,142.21,2.6017]
[1718386513995,2.6012,142.24,142.21,26.0172]
[1718386514167,26.0111,142.25,142.22,7.8046]
[1718386514372,23.41,142.25,142.22,2.6015]
[1718386514591,2.6012,142.24,142.22,2.6015]
[1718386514796,0.8514778,142.27,142.2,2.6019]
[1718386515088,23.4132,142.23,142.2,2.6019]
[1718386515393,23.4132,142.23,142.19,23.4188]
[1718386515394,2.6016,142.22,142.19,23.4188]
[1718386515701,0.8514778,142.27,142.22,2.6014]
[1718386516000,2.6016,142.22,142.19,5.2041]
[1718386516178,2.6016,142.22,142.19,23.4189]
[1718386516385,7.8048,142.22,142.19,26.0209]
[1718386516791,23.4134,142.23,142.19,23.4189]
[1718386516971,23.4134,142.23,142.19,7.8061]
[1718386516972,7.8048,142.22,142.19,7.8061]
[1718386517171,15.6096,142.22,142.19,7.8061]
[1718386517367,2.6016,142.22,142.19,23.4189]
[1718386517680,2.6015,142.23,142.2,26.0191]
[1718386517875,2.6016,142.22,142.19,26.0205]
[1718386518193,26.0146,142.23,142.2,7.8058]
[1718386518694,2.6016,142.22,142.2,2.6019]
[1718386518899,26.0146,142.23,142.2,7.8058]
[1718386519200,2.6016,142.22,142.2,2.6019]
[1718386519505,23.4131,142.23,142.2,2.6019]
[1718386519672,2.6015,142.23,142.2,23.4174]
[1718386520171,2.6015,142.23,142.21,2.6017]
[1718386520404,24.2582778,142.27,142.24,2.6012]
[1718386520572,2.6009,142.26,142.23,23.4118]
[1718386520767,13.8552778,142.27,142.24,2.6012]
[1718386521065,26.8587778,142.27,142.24,5.2024]
[1718386521270,0.8514778,142.27,142.25,2.6009]
[1718386522530,15.6051,142.26,142.23,7.8038]
[1718386522803,11.2542778,142.27,142.22,2.6015]
[1718386522804,7.8034,142.25,142.22,2.6015]
[1718386522967,7.8034,142.25,142.22,7.8045]
[1718386523173,23.4081,142.26,142.23,2.6013]
[1718386523877,7.8028,142.26,142.23,15.6083]
[1718386524082,24.2584778,142.27,142.24,2.6011]
[1718386524381,0.8514778,142.27,142.26,26.0085]
[1718386524906,0.8514778,142.27,142.25,2.6009]
[1718386525110,0.8514778,142.27,142.26,2.6008]
[1718386525287,0.8514778,142.27,142.26,7.8025]
[1718386525492,0.8514778,142.27,142.26,26.0085]
[1718386528003,0.8514778,142.27,142.23,15.9656]
[1718386528204,0.8514778,142.27,142.25,23.4091]
[1718386528406,0.8514778,142.27,142.25,2.601]
[1718386528715,3.4521778,142.27,142.24,26.0112]
[1718386528909,2.6008,142.26,142.24,2.601]
[1718386529224,0.8514778,142.27,142.25,2.601]
[1718386529398,0.8514778,142.27,142.25,7.803]
[1718386529599,0.8514778,142.27,142.25,2.601]
[1718386529798,8.6534778,142.27,142.24,26.0115]
[1718386530014,8.6534778,142.27,142.24,2.601]
[1718386530015,16.4554778,142.27,142.24,2.601]
[1718386530215,3.4521778,142.27,142.25,2.601]
[1718386530820,0.8514778,142.27,142.25,2.601]
[1718386531021,0.8514778,142.27,142.26,2.6008]
[1718386531215,0.8514778,142.27,142.26,7.8025]
[1718386531420,0.8514778,142.27,142.26,26.0085]
[1718386532898,0.8514778,142.27,142.25,2.601]
[1718386533114,8.6535778,142.27,142.24,2.6011]
[1718386533306,8.6535778,142.27,142.24,7.8035]
[1718386533932,0.8514778,142.27,142.21,7.8051]
[1718386534136,2.6016,142.22,142.19,2.602]
[1718386534420,7.8054,142.21,142.18,7.8066]
[1718386534620,2.6019,142.2,142.18,2.6022]
[1718386534804,2.6019,142.2,142.17,23.4214]
[1718386534805,23.4161,142.21,142.17,23.4214]
[1718386535009,0.8514778,142.27,142.15,23.8215]
[1718386535010,0.17,142.26,142.15,23.8215]
[1718386535315,2.6018,142.21,142.18,2.6022]
[1718386535618,0.17,142.26,142.15,16.0132]
[1718386535809,0.68,142.26,142.17,2.6024]
[1718386536011,0.68,142.26,142.15,5.2055]
[1718386536219,5.2041,142.2,142.17,2.6024]
[1718386536419,2.602,142.2,142.17,15.6147]
[1718386536621,23.4165,142.21,142.17,23.4223]
[1718386536824,2.6019,142.2,142.17,26.0246]
[1718386537001,7.8064,142.19,142.13,6.4314]
[1718386537331,2.6022,142.19,142.16,7.8078]
[1718386537622,2.6022,142.19,142.16,7.808]
[1718386537823,7.8065,142.19,142.16,7.808]
[1718386538021,2.6022,142.19,142.16,7.808]
[1718386538326,2.6021,142.2,142.17,15.6149]
[1718386538626,7.806,142.2,142.17,2.6025]
[1718386539123,7.806,142.2,142.17,7.8075]
[1718386539627,2.6021,142.2,142.13,6.4314]
[1718386539839,30.7560371,142.24,142.2,5.2038]
[1718386540046,7.8032,142.25,142.14,0.68]
[1718386540327,23.4129,142.23,142.19,13.0105]
[1718386540531,5.2024,142.24,142.21,2.6017]
[1718386540704,23.411,142.24,142.21,2.6017]
[1718386540908,23.411,142.24,142.21,7.8052]
[1718386540909,7.8037,142.24,142.21,7.8052]
[1718386541225,18.2101,142.23,142.19,23.4182]
[1718386541404,8.19395041,142.27,142.18,2.6022]
[1718386541405,2.6019,142.21,142.18,2.6022]
[1718386541600,7.8055,142.21,142.18,7.8068]
[1718386541819,5.2037,142.21,142.17,18.2168]
[1718386542141,2.6018,142.21,142.18,7.8068]
[1718386542423,26.017,142.22,142.19,2.6021]
[1718386542601,2.6017,142.22,142.19,23.419]
[1718386542801,23.4101,142.25,142.21,23.4156]
[1718386543001,7.8027,142.26,142.19,0.17]
[1718386543220,0.8514778,142.27,142.25,2.6008]
[1718386543421,3.4521778,142.27,142.24,15.6068]
[1718386543705,3.4521778,142.27,142.19,6.7018]
[1718386543706,0.8514778,142.27,142.19,6.7018]
[1718386544012,15.6064,142.25,142.22,2.6014]
[1718386544328,2.6012,142.24,142.22,2.6014]
[1718386544508,7.8034,142.25,142.22,7.8045]
[1718386544707,7.8045,142.23,142.2,2.6018]
[1718386544907,7.8045,142.23,142.19,29.6103]
[1718386544908,13.0073,142.23,142.19,23.4183]
[1718386545114,0.8514778,142.27,142.17,7.8072]
[1718386545115,7.8059,142.2,142.17,7.8072]
[1718386545325,7.8059,142.2,142.17,15.6147]
[1718386545508,7.8059,142.2,142.17,7.8073]
[1718386545715,6.0955,142.25,142.14,22.5559]
[1718386545913,7.8061,142.2,142.17,7.8071]
[1718386546229,2.6022,142.19,142.16,23.4233]
[1718386546404,2.6022,142.19,142.16,26.0258]
[1718386546605,2.6022,142.19,142.16,23.4233]
[1718386546805,2.6018,142.21,142.18,2.6023]
[1718386547025,7.8053,142.21,142.18,7.8068]
[1718386547333,15.6119,142.2,142.17,2.6023]
[1718386547627,15.6119,142.2,142.16,7.8078]
[1718386547628,6.0955,142.25,142.15,0.17]
[1718386547833,6.0955,142.25,142.17,10.4097]
[1718386548003,23.4162,142.21,142.17,23.4218]
[1718386548205,7.8055,142.21,142.18,7.8068]
[1718386548426,15.6108,142.21,142.18,2.6022]
[1718386548606,7.8055,142.21,142.18,7.8068]
[1718386548814,2.6018,142.21,142.18,15.6137]
[1718386549026,2.6019,142.2,142.18,2.6022]
[1718386549222,2.6019,142.2,142.18,2.6023]
[1718386549521,2.6019,142.21,142.19,2.6021]
[1718386549734,15.6108,142.21,142.18,7.8068]
[1718386550048,2.6019,142.21,142.19,2.6021]
[1718386550347,7.8054,142.21,142.18,26.0227]
[1718386550834,13.0089,142.21,142.18,2.6021]
[1718386551040,7.8058,142.2,142.17,26.0245]
[1718386551359,26.0181,142.21,142.18,7.8069]
[1718386551637,2.6019,142.2,142.18,2.6023]
[1718386552008,26.0179,142.21,142.18,7.8069]
[1718386552221,7.8055,142.21,142.18,7.8069]
[1718386552408,15.6108,142.21,142.18,7.8069]
[1718386552628,7.8054,142.21,142.18,7.8069]
[1718386552813,7.8054,142.21,142.18,15.6138]
[1718386553012,2.6018,142.21,142.18,23.4208]
[1718386553223,26.0171,142.22,142.18,23.4208]
[1718386553426,26.0129,142.24,142.21,2.6016]
[1718386553624,2.6011,142.25,142.22,26.0154]
[1718386553935,7.8033,142.25,142.22,7.8044]
[1718386554140,7.8033,142.25,142.22,8.31189423]
[1718386554335,7.8033,142.25,142.22,9.21048837]
[1718386554633,2.6008,142.26,142.23,18.2094]
[1718386554849,2.6008,142.26,142.24,2.6012]
[1718386555211,0.8514778,142.27,142.23,0.17]
[1718386555434,0.8514778,142.27,142.25,15.606]
[1718386555733,0.8514778,142.27,142.26,26.0085]
[1718386555940,0.8514778,142.27,142.25,26.0093]
[1718386556120,0.8514778,142.27,142.26,2.6008]
[1718386556312,0.8514778,142.27,142.26,26.1785]
[1718386556516,0.8514778,142.27,142.26,26.6885]
[1718386558330,0.8514778,142.27,142.25,7.8028]
[1718386558721,0.8514778,142.27,142.24,5.2024]
[1718386558927,0.8514778,142.27,142.25,23.4091]
[1718386559116,0.8514778,142.27,142.25,13.0049]
[1718386559332,0.8514778,142.27,142.26,15.6051]
[1718386559647,0.8514778,142.27,142.26,26.0085]
[1718386560245,0.8514778,142.27,142.25,7.8028]
[1718386560418,0.8514778,142.27,142.25,7.8031]
[1718386560742,0.8514778,142.27,142.24,18.2085]
[1718386560743,3.4521778,142.27,142.24,5.2021]
[1718386560926,0.8514778,142.27,142.25,7.8031]
[1718386561239,0.8514778,142.27,142.25,26.0101]
[1718386561446,0.8514778,142.27,142.26,2.6008]
[1718386561648,0.8514778,142.27,142.26,7.8025]
[1718386561934,0.8514778,142.27,142.25,23.409]
[1718386562243,0.8514778,142.27,142.25,26.0098]
[1718386562420,0.8514778,142.27,142.26,2.6008]
[1718386562625,0.8514778,142.27,142.25,26.0099]
[1718386562837,0.8514778,142.27,142.25,7.8028]
[1718386563020,3.4521778,142.27,142.25,2.6009]
[1718386563530,2.6009,142.26,142.24,2.6012]
[1718386563731,11.2542778,142.27,142.23,23.4119]
[1718386563950,3.4521778,142.27,142.25,2.601]
[1718386564253,0.8514778,142.27,142.26,7.8025]
[1718386564459,0.8514778,142.27,142.26,26.0085]
[1718386567234,0.8514778,142.27,142.26,26.3485]
[1718386567435,0.8514778,142.27,142.26,26.5185]
[1718386567638,0.8514778,142.27,142.26,26.0085]
[1718386570139,0.8514778,142.27,142.26,26.3485]
[1718386570343,0.8514778,142.27,142.26,26.5185]
[1718386572964,0.8514778,142.27,142.26,26.6885]
[1718386577578,0.8514778,142.27,142.26,41.8075]
[1718386580676,7.7972,142.36,142.33,7.7984]
[1718386580976,2.5992,142.35,142.33,2.5994]
[1718386581176,7.7976,142.35,142.32,25.996]
[1718386581353,2.5992,142.35,142.33,2.5995]
[1718386581553,7.7976,142.35,142.32,23.3964]
[1718386581859,2.5993,142.35,142.32,23.3966]
[1718386582068,2.5993,142.35,142.33,2.5995]
[1718386582565,20.7924,142.36,142.33,5.1991]
[1718386582787,2.5992,142.35,142.33,7.7986]
[1718386583091,15.5942,142.36,142.33,25.9951]
[1718386583786,7.7971,142.36,142.33,23.3957]
[1718386583950,7.7971,142.36,142.33,7.7986]
[1718386583951,2.5992,142.35,142.33,7.7986]
[1718386584155,22.2766,142.38,142.35,2.5991]
[1718386584156,2.5989,142.37,142.35,2.5991]
[1718386584466,7.7972,142.36,142.33,25.9953]
[1718386584775,2.5991,142.36,142.34,2.5993]
[1718386584977,2.599,142.36,142.34,7.7981]
[1718386585153,7.7969,142.37,142.34,23.3944]
[1718386585353,25.9889,142.37,142.34,7.798]
[1718386585558,23.3915,142.36,142.33,7.7983]
[1718386585767,18.1962,142.34,142.3,5.2001]
[1718386586077,18.1962,142.34,142.26,15.119]
[1718386586078,2.5994,142.35,142.33,2.5995]
[1718386586390,25.9915,142.36,142.33,7.7986]
[1718386586568,25.9893,142.37,142.34,7.798]
[1718386586758,2.599,142.36,142.34,7.798]
[1718386586959,48.2641,142.38,142.35,7.7975]
[1718386587155,2.5988,142.37,142.35,7.7974]
[1718386587362,39.1322,142.38,142.35,7.7974]
[1718386587678,15.5932,142.37,142.34,25.9927]
[1718386588174,2.5989,142.37,142.35,7.7975]
[1718386588384,2.5988,142.37,142.35,7.7975]
[1718386588587,39.1322,142.38,142.35,2.5991]
[1718386588899,7.7966,142.37,142.35,2.5991]
[1718386589052,18.3426,142.38,142.36,2.599]
[1718386589252,2.5988,142.37,142.35,10.3966]
[1718386589477,23.54,142.38,142.36,2.599]
[1718386589680,25.986,142.39,142.36,7.7969]
[1718386589979,2.5986,142.39,142.37,2.5987]
[1718386590162,0.8514778,142.41,142.4,20.7864]
[1718386590387,0.8514778,142.41,142.4,25.983]
[1718386590767,0.8514778,142.41,142.4,26.493]
[1718386591691,2.5986,142.39,142.34,23.3946]
[1718386591988,0.8514778,142.41,142.35,7.7973]
[1718386592184,7.7964,142.38,142.36,2.599]
[1718386592688,7.7958,142.39,142.37,2.5988]
[1718386593267,2.5985,142.39,142.37,15.5929]
[1718386593590,2.5985,142.39,142.37,2.5988]
[1718386593771,25.9859,142.39,142.36,7.797]
[1718386593959,10.3955,142.37,142.34,7.7978]
[1718386594175,23.39,142.37,142.34,2.5992]
[1718386594395,2.5993,142.35,142.32,23.397]
[1718386594571,18.1937,142.36,142.33,15.5973]
[1718386594886,7.7978,142.35,142.32,25.997]
[1718386595069,15.2164,142.4,142.31,2.5998]
[1718386595278,23.3956,142.34,142.31,7.7996]
[1718386595487,2.5996,142.33,142.31,2.5998]
[1718386595703,7.7988,142.33,142.3,26.0008]
[1718386596198,2.5995,142.34,142.32,2.5997]
[1718386596378,25.9929,142.35,142.32,7.7991]
[1718386596578,2.5994,142.34,142.32,2.5997]
[1718386596782,25.9929,142.35,142.32,7.7991]
[1718386597091,2.5994,142.34,142.32,7.7991]
[1718386597466,23.3936,142.35,142.32,2.5997]
[1718386597686,7.7977,142.35,142.33,2.5995]
[1718386597893,18.1936,142.36,142.33,23.396]
[1718386597894,7.7973,142.36,142.33,23.396]
[1718386598097,7.7973,142.36,142.33,25.9954]
[1718386598295,7.4395778,142.41,142.33,25.9954]
[1718386598296,0.8514778,142.41,142.34,0.17]
[1718386598475,3.4495778,142.41,142.39,7.7952]
[1718386598678,3.4495778,142.41,142.4,2.5983]
[1718386598679,0.8514778,142.41,142.4,2.5983]
[1718386599092,0.8514778,142.41,142.4,25.983]
[1718386599296,0.8514778,142.41,142.4,2.5983]
[1718386599583,0.8514778,142.41,142.4,15.5898]
[1718386600314,0.8514778,142.41,142.4,7.7949]
[1718386600887,2.5983,142.4,142.38,25.9856]
[1718386601087,26.8328778,142.41,142.38,25.9856]
[1718386601289,2.5983,142.4,142.38,7.7957]
[1718386601592,3.4495778,142.41,142.39,2.5984]
[1718386602017,0.8514778,142.41,142.33,22.8557]
[1718386602199,2.5985,142.39,142.37,2.5987]
[1718386602397,3.4495778,142.41,142.39,2.5984]
[1718386602703,16.4402778,142.41,142.38,25.9856]
[1718386602884,0.8514778,142.41,142.4,2.5983]
[1718386603309,0.8514778,142.41,142.4,7.7949]
[1718386603687,0.8514778,142.41,142.4,2.5983]
[1718386603929,0.8514778,142.41,142.39,25.9838]
[1718386604229,0.8514778,142.41,142.4,2.5983]
[1718386604593,0.8514778,142.41,142.4,25.983]
[1718386607504,0.8514778,142.41,142.4,42.0434]
[1718386607701,0.8514778,142.41,142.4,42.5534]
[1718386608516,7.7895,142.5,142.48,2.5967]
[1718386608828,23.3685,142.5,142.47,25.9691]
[1718386608987,7.79,142.49,142.47,7.7906]
[1718386609316,7.79,142.49,142.46,18.1797]
[1718386609317,25.9667,142.49,142.46,25.9709]
[1718386609620,23.3719,142.48,142.45,5.1946]
[1718386609817,6.2212,142.51,142.4,22.2294]
[1718386610022,15.5846,142.45,142.42,23.3811]
[1718386610197,2.5974,142.45,142.43,7.793]
[1718386610516,25.9728,142.46,142.44,2.5975]
[1718386610819,2.5972,142.46,142.44,7.7924]
[1718386611800,2.5971,142.47,142.45,7.792]
[1718386612004,25.9705,142.47,142.44,23.3779]
[1718386612205,15.5833,142.46,142.44,2.5975]
[1718386612604,2.5972,142.46,142.44,7.7926]
[1718386612993,7.7916,142.46,142.44,2.5975]
[1718386613196,25.9723,142.46,142.44,2.5975]
[1718386613398,25.9704,142.47,142.44,23.3778]
[1718386613611,25.9704,142.47,142.45,2.5973]
[1718386613817,2.5972,142.46,142.44,7.7923]
[1718386614016,25.9704,142.47,142.44,15.585]
[1718386614322,25.9704,142.47,142.45,2.5973]
[1718386614520,25.969,142.48,142.45,25.9736]
[1718386614820,10.386,142.5,142.4,15.8904]
[1718386615028,7.7901,142.49,142.47,2.5969]
[1718386615330,2.5968,142.48,142.46,25.9714]
[1718386615495,2.5968,142.48,142.46,7.7912]
[1718386615705,6.2212,142.51,142.41,0.51]
[1718386615907,7.7924,142.45,142.42,23.3811]
[1718386616130,25.9732,142.46,142.43,15.5862]
[1718386616305,2.5974,142.45,142.43,2.5976]
[1718386616620,16.5779,142.47,142.42,15.5873]
[1718386616831,7.7927,142.44,142.37,29.9]
[1718386617014,2.5976,142.44,142.42,2.5979]
[1718386617205,2.5976,142.44,142.42,7.7937]
[1718386617405,23.3771,142.45,142.42,7.7937]
[1718386617636,23.3771,142.45,142.43,2.5977]
[1718386617637,7.7925,142.45,142.43,2.5977]
[1718386618007,15.5845,142.45,142.42,25.9789]
[1718386618331,2.5975,142.44,142.42,2.5977]
[1718386618831,2.5976,142.44,142.42,7.7935]
[1718386619033,7.7935,142.43,142.4,23.3839]
[1718386619327,7.7935,142.43,142.4,25.982]
[1718386619502,23.3789,142.44,142.41,7.7943]
[1718386619698,15.5858,142.44,142.41,7.7943]
[1718386619902,2.5977,142.43,142.41,2.5981]
[1718386620102,25.9762,142.44,142.41,7.7943]
[1718386620521,2.5977,142.43,142.41,2.5981]
[1718386620701,2.5977,142.43,142.4,25.9819]
[1718386620902,25.976,142.44,142.41,7.7943]
[1718386621217,2.5977,142.43,142.41,2.5981]
[1718386621721,25.9762,142.44,142.41,2.5981]
[1718386622030,39.9518,142.47,142.44,2.5975]
[1718386622205,25.9672,142.49,142.46,2.5972]
[1718386622527,25.9672,142.49,142.45,23.3754]
[1718386622528,21.551,142.51,142.39,0.17]
[1718386622701,7.79,142.49,142.46,23.3743]
[1718386622909,25.9667,142.49,142.46,7.7912]
[1718386623105,21.551,142.51,142.39,0.68]
[1718386623320,5.1939,142.48,142.45,2.5973]
[1718386623526,2.5969,142.48,142.45,5.1947]
[1718386623717,18.1773,142.49,142.45,18.1813]
[1718386623929,2.5968,142.48,142.46,2.5971]
[1718386624122,7.7905,142.48,142.45,25.973]
[1718386624424,16.5832,142.53,142.44,15.1497]
[1718386624634,7.7907,142.48,142.45,15.5839]
[1718386624835,15.5812,142.48,142.45,7.7918]
[1718386625016,23.3752,142.46,142.42,25.9781]
[1718386625214,2.597,142.47,142.4,15.1497]
[1718386625421,2.597,142.47,142.44,5.1949]
[1718386625422,10.3881,142.47,142.44,5.1949]
[1718386625603,2.5973,142.46,142.44,2.5975]
[1718386625808,2.5974,142.45,142.42,7.7933]
[1718386626004,25.9727,142.46,142.43,2.5977]
[1718386626232,5.1945,142.46,142.43,2.5977]
[1718386626420,5.1943,142.47,142.44,2.5975]
[1718386626614,25.9709,142.47,142.44,7.7926]
[1718386626811,25.9709,142.47,142.44,2.5975]
[1718386626812,2.5972,142.46,142.44,2.5975]
[1718386627126,25.9708,142.47,142.44,2.5975]
[1718386627424,2.5971,142.47,142.45,2.5973]
[1718386627611,7.7911,142.47,142.44,25.9754]
[1718386627822,15.5822,142.47,142.44,7.7925]
[1718386628029,6.4561,142.5,142.43,2.5977]
[1718386628030,2.5974,142.45,142.43,2.5977]
[1718386628210,18.181,142.46,142.43,7.7932]
[1718386628534,7.7922,142.45,142.42,18.1845]
[1718386628716,7.7922,142.45,142.42,7.7933]
[1718386628916,2.5976,142.44,142.41,23.3823]
[1718386629227,15.3666,142.46,142.39,2.5984]
[1718386629420,15.3666,142.46,142.37,18.1912]
[1718386629620,15.3666,142.46,142.37,23.3889]
[1718386629828,7.7943,142.41,142.38,2.5985]
[1718386630034,2.5983,142.4,142.37,23.3886]
[1718386630205,15.3666,142.46,142.38,2.5986]
[1718386630412,7.7946,142.41,142.38,7.7958]
[1718386630603,2.5979,142.42,142.39,2.5983]
[1718386630823,25.9784,142.43,142.4,2.5982]
[1718386631029,2.5979,142.43,142.4,25.9828]
[1718386631235,2.5979,142.42,142.39,25.9837]
[1718386631476,23.38,142.43,142.39,23.3855]
[1718386631620,7.7934,142.43,142.4,18.1877]
[1718386631822,2.5979,142.43,142.4,15.5894]
[1718386632121,2.5979,142.43,142.4,23.3844]
[1718386632326,7.7934,142.43,142.4,7.7945]
[1718386632539,7.7934,142.43,142.35,16.4124]
[1718386632540,23.3804,142.43,142.35,16.4124]
[1718386632710,7.7936,142.43,142.4,2.5981]
[1718386633050,2.5977,142.43,142.41,2.598]
[1718386633342,2.5977,142.43,142.4,25.9827]
[1718386633549,7.7932,142.43,142.4,7.7946]
[1718386633728,2.5977,142.43,142.4,23.3843]
[1718386633929,2.5977,142.43,142.4,25.9824]
[1718386634406,7.7932,142.43,142.4,25.9824]
[1718386634609,7.7932,142.43,142.4,7.7946]
[1718386634810,15.5865,142.43,142.4,7.7946]
[1718386635055,15.5865,142.43,142.4,2.5981]
[1718386635209,15.5865,142.43,142.4,7.7946]
[1718386635509,0.17,142.44,142.33,2.5995]
[1718386635841,2.5991,142.36,142.33,7.7985]
[1718386636039,100.17,142.44,142.33,7.7985]
[1718386636040,7.797,142.37,142.34,7.798]
[1718386636249,7.7967,142.37,142.34,7.798]
[1718386636542,2.599,142.37,142.34,25.9935]
[1718386637529,2.5988,142.38,142.35,15.595]
[1718386637739,2.5987,142.38,142.35,15.5949]
[1718386637941,100.34,142.44,142.33,2.5995]
[1718386638154,2.5991,142.36,142.34,2.5994]
[1718386638370,25.9893,142.37,142.34,2.5993]
[1718386638539,2.599,142.36,142.33,25.9954]
[1718386639064,2.5993,142.35,142.32,25.9965]
[1718386639231,7.7976,142.35,142.32,7.7989]
[1718386639433,2.5992,142.35,142.32,25.9971]
[1718386639663,7.7971,142.36,142.33,2.5994]
[1718386639860,2.599,142.36,142.33,15.5971]
[1718386640032,25.9891,142.37,142.34,2.5993]
[1718386640233,2.599,142.36,142.33,25.9953]
[1718386640529,2.599,142.36,142.33,15.5972]
[1718386640756,2.599,142.36,142.33,7.7985]
[1718386641071,2.5982,142.41,142.38,2.5986]
[1718386641360,23.3823,142.42,142.38,5.1973]
[1718386641665,2.5985,142.39,142.36,5.1979]
[1718386641826,120.71000942,142.44,142.3,29.9]
[1718386642033,7.7966,142.37,142.34,7.798]
[1718386642249,23.3891,142.38,142.35,2.5992]
[1718386642446,5.1975,142.38,142.34,18.1956]
[1718386642643,2.5988,142.37,142.34,25.9933]
[1718386642832,2.599,142.36,142.33,7.7983]
[1718386643028,25.9907,142.36,142.33,2.5995]
[1718386643363,7.7967,142.37,142.34,7.798]
[1718386643744,7.7967,142.37,142.34,2.5993]
[1718386644456,2.5992,142.35,142.32,25.9966]
[1718386644636,15.5956,142.35,142.31,25.9984]
[1718386644830,16.1647,142.38,142.32,2.5996]
[1718386645033,16.1647,142.38,142.3,23.4001]
[1718386645358,15.5956,142.35,142.32,2.5997]
[1718386645548,2.5994,142.34,142.31,25.9991]
[1718386645731,7.7982,142.34,142.31,7.7996]
[1718386645936,2.5994,142.34,142.31,7.7996]
[1718386646136,25.9927,142.35,142.32,2.5997]
[1718386646337,7.7979,142.35,142.32,2.5997]
[1718386646552,34.3558,142.38,142.29,21.2213]
[1718386646842,7.7978,142.35,142.32,2.5996]
[1718386647052,2.5994,142.34,142.31,7.7996]
[1718386647258,7.7982,142.34,142.31,7.7997]
[1718386647741,18.1947,142.35,142.31,7.7997]
[1718386647742,25.9926,142.35,142.32,2.5997]
[1718386647940,25.9926,142.35,142.31,25.999]
[1718386648163,2.5994,142.34,142.31,25.999]
[1718386648367,7.7979,142.35,142.32,7.7992]
[1718386648657,2.5993,142.35,142.32,7.7991]
[1718386649045,2.5994,142.34,142.31,7.7996]
[1718386649354,23.3937,142.35,142.31,23.3993]
[1718386649554,2.5992,142.35,142.32,25.9973]
[1718386649737,7.7976,142.35,142.32,2.5996]
[1718386650457,23.3931,142.35,142.31,25.9982]
[1718386650659,23.3949,142.34,142.3,5.2]
[1718386650865,23.3949,142.34,142.29,22.8304]
[1718386650866,2.5999,142.32,142.29,7.8007]
[1718386651164,2.5997,142.33,142.3,7.8002]
[1718386651364,2.5997,142.33,142.29,18.2021]
[1718386651365,2.5998,142.32,142.29,2.6002]
[1718386651668,2.5998,142.32,142.28,18.2027]
[1718386651669,2.6,142.31,142.28,7.8012]
[1718386651881,7.7999,142.31,142.28,2.6003]
[1718386652167,7.8005,142.3,142.27,2.6006]
[1718386652460,7.8001,142.31,142.28,2.6005]
[1718386652682,7.7994,142.32,142.29,2.6002]
[1718386652840,7.7994,142.32,142.29,7.8008]
[1718386652841,2.5998,142.32,142.29,7.8008]
[1718386653042,6.4667,142.35,142.27,18.2042]
[1718386653242,15.6007,142.3,142.27,2.6005]